fUST/lending_fUST_20240610
["ID","MTS","AMOUNT","RATE_DAILY","PERIOD"]
[328922287,1717995044677,-2649.66799062,0.00021599,2]
[328922288,1717995044687,-254.0,0.000216,2]
[328922289,1717995044697,-508.0,0.000216,2]
[328922290,1717995044707,-508.0,0.000216,2]
[328922291,1717995044717,-160.0,0.000216,2]
[328922292,1717995044727,-3000.0,0.000216,2]
[328922293,1717995044737,-2979.42623648,0.0002161,2]
[328922294,1717995044750,-20.57376352,0.0002161,2]
[328922295,1717995044761,-232.35087666,0.0002162,2]
[328922308,1717995047581,-2259.26515726,0.0002162,2]
[328922391,1717996233510,-913.24602737,0.00016213,2]
[328922392,1717996233522,-2158.85359184,0.00016213,2]
[328922393,1717996233532,-1141.8184048,0.00016214,2]
[328922394,1717996233544,-166.666666,0.00016986,2]
[328922395,1717996233554,-24900.0,0.00018844,2]
[328922396,1717996233564,-317.6400939,0.00019499,2]
[328922397,1717996233574,-187.13750719,0.00020206,2]
[328922398,1717996233584,-412.54798908,0.00020206,2]
[328922399,1717996233594,-188.32312715,0.00020206,2]
[328922401,1717996233604,-224.23955391,0.00020206,2]
[328922404,1717996233614,-242.61442661,0.00020207,2]
[328922407,1717996233624,-2682.36568579,0.00020207,2]
[328922410,1717996233633,-8123.62112228,0.00020208,2]
[328922500,1717996239422,-1696.85487879,0.00020208,2]
[328922501,1717996239436,-4109.16328342,0.00020208,2]
[328922512,1717996242586,-304.71368244,0.00020208,2]
[328922513,1717996244282,-6661.0788183,0.00020208,2]
[328922514,1717996244293,-160.0543975,0.00020304,2]
[328922515,1717996244305,-5688.285961,0.000215,2]
[328922516,1717996244316,-167.72782056,0.00021508,2]
[328922517,1717996244327,-2771.9675806,0.00021508,2]
[328922518,1717996244338,-151.0,0.000216,2]
[328922519,1717996244349,-254.0,0.000216,2]
[328922520,1717996244360,-508.0,0.000216,2]
[328922521,1717996244370,-508.0,0.000216,2]
[328922522,1717996244381,-159.6,0.0002161,3]
[328922523,1717996244391,-159.61,0.0002161,3]
[328922524,1717996244402,-478.83,0.0002161,3]
[328922525,1717996244413,-1317.40715674,0.00021617,2]
[328922526,1717996244423,-3619.17336817,0.00021618,2]
[328922551,1717996247544,-166.666666,0.00016986,2]
[328922552,1717996247556,-5537.10155391,0.00021618,2]
[328922553,1717996247566,-1029.6913001,0.00021619,2]
[328922554,1717996247576,-1549.91478342,0.0002162,7]
[328922555,1717996326397,285.88430682,9.999e-05,2]
[328922557,1717996360280,195.10716113,9.999e-05,2]
[328922558,1717996361644,1138.90852539,0.00015152,2]
[328922638,1717996617996,150.98490151,0.00024243,120]
[328922649,1717996974092,2183.96460316,0.0001,2]
[328922716,1717997433191,-1048.245,0.00016982,2]
[328922737,1717997433393,-988.75798008,0.00016982,2]
[328922739,1717997433403,-19310.35733687,0.00016983,2]
[328922741,1717997433413,-3072.09961921,0.00016984,2]
[328922743,1717997433422,-166.666666,0.00016986,2]
[328922745,1717997433432,-37004.46840551,0.00018426,2]
[328922747,1717997433444,-5101.97478273,0.00018426,2]
[328922749,1717997433455,-300.0,0.00018426,2]
[328922751,1717997433465,-24900.0,0.00018428,2]
[328922753,1717997433476,-193.43300617,0.000188,2]
[328922755,1717997433486,-211.7600626,0.000189,2]
[328922757,1717997433497,-161.214407,0.00019178,2]
[328922759,1717997433507,-420.0,0.00020096,2]
[328922761,1717997433518,-530.12832309,0.00020202,2]
[328922763,1717997433528,-195.4492339,0.00020202,2]
[328922766,1717997433539,-157.33217677,0.00020203,2]
[328922768,1717997433550,-3357.37299193,0.00020205,2]
[328922769,1717997433560,-1342.79843971,0.00020205,2]
[328922771,1717997433570,-155.03195233,0.00020205,2]
[328922774,1717997433579,-1281.7000677,0.00020205,2]
[328922775,1717997433589,-193.34879195,0.00020205,4]
[328922777,1717997433599,-159.45067561,0.00020205,2]
[328922779,1717997433608,-241.93645238,0.00020205,2]
[328922781,1717997433618,-286.34035642,0.00020205,2]
[328922783,1717997433628,-193.43300617,0.00020309,2]
[328922785,1717997433638,-471.11084475,0.00021,2]
[328922787,1717997433650,-623.06552119,0.00021477,2]
[328922789,1717997433660,-3000.0,0.000215,2]
[328922791,1717997433670,-4983.288074,0.0002151,2]
[328922793,1717997433679,-254.0,0.000216,2]
[328922795,1717997433689,-508.0,0.000216,2]
[328922797,1717997433699,-508.0,0.000216,2]
[328922799,1717997433709,-638.42,0.00021609,3]
[328922801,1717997433719,-29369.33004902,0.00021619,2]
[328922981,1717997441011,-12916.63373335,0.00021619,2]
[328922983,1717997441022,-1017.75990701,0.0002162,2]
[328922986,1717997441033,-501.36190017,0.00021708,2]
[328922988,1717997441044,-1000.0,0.000218,6]
[328922990,1717997441055,-1000.55862774,0.00021817,2]
[328922992,1717997441065,-193.43300617,0.00021817,2]
[328922994,1717997441076,-151.0,0.00021889,2]
[328922996,1717997441086,-5880.43772364,0.00021917,7]
[328922998,1717997441097,-500.0,0.00021917,3]
[328923000,1717997441108,-500.0,0.00021917,3]
[328923002,1717997441119,-1001.90146411,0.00021917,3]
[328923004,1717997441129,-503.94421677,0.00021917,3]
[328923006,1717997441139,-502.27516345,0.00021917,3]
[328923008,1717997441154,-502.86779515,0.00021917,3]
[328923010,1717997441165,-502.18001993,0.00021917,3]
[328923012,1717997441175,-505.09307229,0.00021917,3]
[328923014,1717997441185,-503.15078401,0.00021917,3]
[328923016,1717997441197,-502.72832766,0.00021917,3]
[328923018,1717997441207,-505.90636679,0.00021917,3]
[328923020,1717997441217,-528.23936182,0.00021917,3]
[328923022,1717997441228,-504.17341129,0.00021917,3]
[328923024,1717997441238,-502.07071448,0.00021917,3]
[328923026,1717997441248,-415.14323387,0.00021917,3]
[328923028,1717997441258,-155.9263854,0.00021917,3]
[328923030,1717997441272,-359.5536716,0.00021917,3]
[328923032,1717997441283,-526.46337554,0.00021917,3]
[328923034,1717997441294,-501.04978991,0.00021917,3]
[328923036,1717997441304,-95.83522644,0.00021917,3]
[328923038,1717997441318,-406.90296623,0.00021917,3]
[328923040,1717997441329,-527.80846903,0.00021917,3]
[328923042,1717997441340,-526.62855143,0.00021917,3]
[328923044,1717997441350,-413.13094175,0.00021917,3]
[328923306,1717997445421,-88.19471305,0.00021917,3]
[328923308,1717997445431,-517.04544847,0.00021917,3]
[328923310,1717997445441,-504.07289457,0.00021917,3]
[328923312,1717997445451,-500.0,0.00021917,3]
[328923314,1717997445460,-500.0,0.00021917,3]
[328923316,1717997445470,-172.64313411,0.00021917,3]
[328923318,1717997445480,-503.18543311,0.00021917,3]
[328923320,1717997445490,-514.89471071,0.00021917,2]
[328923322,1717997445504,-500.0,0.00021917,3]
[328923324,1717997445514,-500.0,0.00021917,3]
[328923325,1717997445525,-500.0,0.00021917,3]
[328923326,1717997445536,-500.0,0.00021917,3]
[328923327,1717997445545,-503.41374385,0.00021917,3]
[328923328,1717997445556,-531.13091449,0.00021917,3]
[328923329,1717997445565,-502.65471147,0.00021917,3]
[328923330,1717997445575,-500.0,0.00021917,3]
[328923331,1717997445584,-500.0,0.00021917,3]
[328923332,1717997445603,-500.0,0.00021917,3]
[328923333,1717997445618,-503.86688427,0.00021917,3]
[328923334,1717997445629,-528.64772788,0.00021917,3]
[328923335,1717997445639,-504.47408647,0.00021917,3]
[328923336,1717997445648,-504.35387679,0.00021917,3]
[328923337,1717997445660,-500.0,0.00021917,3]
[328923343,1717997445818,-500.0,0.00021917,3]
[328923345,1717997445829,-504.71312312,0.00021917,3]
[328923346,1717997445840,-500.0,0.00021917,3]
[328923347,1717997445851,-503.59121716,0.00021917,3]
[328923348,1717997445861,-500.0,0.00021917,3]
[328923349,1717997445871,-500.0,0.00021917,3]
[328923350,1717997445881,-500.0,0.00021917,3]
[328923351,1717997445891,-510.1980821,0.00021917,3]
[328923352,1717997445901,-500.0,0.00021917,3]
[328923353,1717997445914,-503.50514487,0.00021917,3]
[328923354,1717997445924,-566.6803737,0.00021917,3]
[328923355,1717997445935,-505.64386145,0.00021917,3]
[328923356,1717997445945,-297.9,0.00021917,3]
[328923357,1717997445955,-500.0,0.00021917,3]
[328923358,1717997445965,-502.26951254,0.00021917,3]
[328923359,1717997445975,-501.37636479,0.00021917,3]
[328923360,1717997445985,-500.0,0.00021917,3]
[328923361,1717997445995,-208.74804462,0.00021917,3]
[328923362,1717997446005,-500.0,0.00021917,2]
[328923363,1717997446015,-500.0,0.00021917,3]
[328923364,1717997446025,-501.62309163,0.00021917,3]
[328923365,1717997446035,-500.0,0.00021917,3]
[328923366,1717997446045,-510.57504841,0.00021917,3]
[328923367,1717997446055,-504.53272338,0.00021917,3]
[328923368,1717997446065,-500.0,0.00021917,3]
[328923369,1717997446075,-500.0,0.00021917,3]
[328923370,1717997446085,-500.0,0.00021917,3]
[328923371,1717997446094,-501.27885888,0.00021917,3]
[328923372,1717997446103,-503.61427952,0.00021917,3]
[328923373,1717997446113,-516.80915309,0.00021917,3]
[328923374,1717997446123,-500.0,0.00021917,3]
[328923375,1717997446133,-500.0,0.00021917,3]
[328923376,1717997446142,-500.0,0.00021917,3]
[328923377,1717997446152,-500.0,0.00021917,3]
[328923378,1717997446163,-500.0,0.00021917,3]
[328923379,1717997446172,-500.0,0.00021917,3]
[328923380,1717997446182,-500.0,0.00021917,3]
[328923381,1717997446191,-79.55087,0.00021917,3]
[328923395,1717997558756,182.02946988,9.999e-05,2]
[328923396,1717997579206,317.51042321,9.999e-05,2]
[328923398,1717997583681,1691.14243122,0.00015,2]
[328923399,1717997590758,524.421315,9.999e-05,2]
[328923400,1717997601827,155.0,9.999e-05,2]
[328923401,1717997610434,155.0,9.999e-05,2]
[328923402,1717997613831,252.42584351,9.999e-05,2]
[328923419,1717997625729,962.96557425,9.999e-05,2]
[328923420,1717997629333,722.38007944,9.999e-05,2]
[328923421,1717997631824,282.49542241,9.999e-05,2]
[328923428,1717997682425,155.0,9.999e-05,2]
[328923433,1717997785805,443.60484974,0.00014377,2]
[328923450,1717997921780,267.5011905,9.999e-05,7]
[328923451,1717997976085,286.51498306,0.00015,2]
[328923452,1717998226312,182.02946988,9.999e-05,2]
[328923453,1717998231478,1866.1465472,0.00015955,2]
[328923484,1717998479830,6317.05382581,0.00016,2]
[328923543,1717998633093,-155.0,0.00015117,2]
[328923544,1717998633103,-366.66276393,0.00015117,2]
[328923545,1717998633114,-826.65721377,0.00015117,2]
[328923546,1717998633126,-1878.77964151,0.00015117,2]
[328923547,1717998633135,-2121.36699183,0.00015118,2]
[328923548,1717998633145,-80000.0,0.00015118,2]
[328923549,1717998633154,-2037.00298008,0.00015119,2]
[328923550,1717998633166,-19310.35733687,0.00015119,2]
[328923551,1717998633180,-1911.28086251,0.0001512,2]
[328923552,1717998633189,-566.2255995,0.00015121,2]
[328923553,1717998633199,-407.3538408,0.00015311,2]
[328923554,1717998633210,-2259.94799727,0.00015895,2]
[328923555,1717998633222,-300.0,0.00015994,2]
[328923556,1717998633231,-1719.7263211,0.00016007,2]
[328923557,1717998633241,-215.89211872,0.00016978,2]
[328923558,1717998633251,-166.666666,0.00016986,2]
[328923559,1717998633260,-2259.94799723,0.00017374,2]
[328923560,1717998633269,-420.0,0.00017487,2]
[328923561,1717998633279,-24900.0,0.00018249,2]
[328923562,1717998633288,-268.28545635,0.00018578,7]
[328923563,1717998633297,-2259.94799723,0.00018853,2]
[328923564,1717998633307,-251.56079685,0.000189,2]
[328923565,1717998633316,-587.0,0.00019119,2]
[328923567,1717998633326,-799.4324789,0.00019178,7]
[328923568,1717998633335,-161.214407,0.00019178,2]
[328923570,1717998633345,-161.214407,0.00019178,2]
[328923571,1717998633354,-2259.94799723,0.00020331,2]
[328923572,1717998633364,-823.0,0.00020904,2]
[328923573,1717998633374,-154.3091244,0.00021041,2]
[328923574,1717998633384,-153.0,0.00021041,2]
[328923576,1717998633394,-153.0,0.00021041,2]
[328923578,1717998633403,-256.0567139,0.00021096,2]
[328923580,1717998633415,-153.0,0.00021096,2]
[328923582,1717998633424,-296.4940582,0.00021178,2]
[328923584,1717998633433,-165.6385168,0.00021178,2]
[328923586,1717998633444,-205.3053491,0.00021178,2]
[328923587,1717998633454,-153.0,0.00021178,2]
[328923590,1717998633464,-154.3853822,0.00021178,2]
[328923592,1717998633474,-292.4733043,0.00021178,2]
[328923593,1717998633483,-153.0,0.00021178,2]
[328923594,1717998633493,-205.3053491,0.00021178,2]
[328923595,1717998633502,-153.0,0.00021178,2]
[328923596,1717998633512,-205.3053491,0.00021178,2]
[328923597,1717998633521,-153.0,0.00021178,2]
[328923598,1717998633531,-292.4733043,0.00021178,2]
[328923599,1717998633541,-153.0,0.00021178,2]
[328923600,1717998633551,-292.4733043,0.00021178,2]
[328923601,1717998633560,-153.0,0.00021178,2]
[328923602,1717998633570,-205.3053491,0.00021178,2]
[328923603,1717998633579,-153.0,0.00021178,2]
[328923604,1717998633588,-292.4733043,0.00021178,2]
[328923605,1717998633598,-205.3053491,0.00021178,2]
[328923606,1717998633607,-153.0,0.00021178,2]
[328923607,1717998633617,-292.4733043,0.00021178,2]
[328923608,1717998633627,-205.3053491,0.00021178,2]
[328923609,1717998633636,-153.9956263,0.00021452,2]
[328923610,1717998633645,-150.0,0.000215,2]
[328923611,1717998633654,-155.28795066,0.00021594,2]
[328923612,1717998633664,-155.0,0.00021594,2]
[328923613,1717998633673,-257.96804694,0.00021594,2]
[328923614,1717998633683,-275.55259809,0.00021595,2]
[328923615,1717998633692,-180.0,0.000216,2]
[328923616,1717998633702,-312.52321713,0.00021661,2]
[328923617,1717998633711,-4237.72657179,0.00021669,2]
[328923618,1717998633720,-2259.94799723,0.0002181,2]
[328923619,1717998633730,-190.20871415,0.00021815,2]
[328923620,1717998633740,-297.56749499,0.0002188,2]
[328923621,1717998633750,-423.2503479,0.0002188,2]
[328923622,1717998633759,-519.08939758,0.0002188,2]
[328923623,1717998633768,-187.69219361,0.0002188,2]
[328923624,1717998633777,-383.08012344,0.0002188,2]
[328923625,1717998633787,-994.02956795,0.0002188,2]
[328923626,1717998633796,-352.07193209,0.0002188,2]
[328923627,1717998633806,-273.62268294,0.0002188,2]
[328923628,1717998633815,-287.77726842,0.0002188,2]
[328923629,1717998633824,-273.42961631,0.0002188,2]
[328923630,1717998633834,-474.53494919,0.0002188,2]
[328923631,1717998633844,-948.21053722,0.00021881,2]
[328923632,1717998633855,-1509.87337537,0.00021881,2]
[328923633,1717998633864,-1750.3502921,0.00021887,2]
[328923634,1717998633874,-254.89550646,0.00021889,2]
[328923635,1717998633884,-254.0,0.000219,2]
[328923636,1717998633893,-508.0,0.000219,2]
[328923637,1717998633903,-508.0,0.000219,2]
[328923638,1717998633920,-281.30045747,0.00021908,2]
[328923639,1717998633929,-7891.70528676,0.00021909,7]
[328923640,1717998633939,-925.94235348,0.00021909,2]
[328923641,1717998633949,-157.63075828,0.00021909,2]
[328923642,1717998633958,-775.00623425,0.00021909,2]
[328923643,1717998633969,-155.27641064,0.00021909,2]
[328923644,1717998633978,-155.30194266,0.00021909,2]
[328923645,1717998633988,-164.72056449,0.00021909,2]
[328923646,1717998633998,-591.88746082,0.00021909,2]
[328923647,1717998634008,-411.14633801,0.00021909,2]
[328923648,1717998634017,-190.19503775,0.00021909,2]
[328923649,1717998634027,-210.89161251,0.00021909,2]
[328923650,1717998634039,-156.07378641,0.00021909,2]
[328923651,1717998634049,-190.16059523,0.00021909,2]
[328923652,1717998634059,-290.89954118,0.00021909,2]
[328923653,1717998634068,-156.44084362,0.00021909,2]
[328923654,1717998634078,-274.55890863,0.00021909,2]
[328923655,1717998634088,-839.02879992,0.00021909,2]
[328923656,1717998634098,-341.10800727,0.00021909,2]
[328923657,1717998634108,-236.0068879,0.00021909,2]
[328923658,1717998634117,-159.75452184,0.00021909,2]
[328923659,1717998634127,-341.82435039,0.00021909,2]
[328923660,1717998634137,-208.3401499,0.00021909,2]
[328923661,1717998634146,-293.11961162,0.00021909,2]
[328923662,1717998634158,-1449.48911185,0.00021909,2]
[328923663,1717998634169,-538.22435818,0.00021909,2]
[328923664,1717998634184,-191.047901,0.00021909,2]
[328923665,1717998634194,-156.7509309,0.00021909,2]
[328923666,1717998634204,-274.46316179,0.00021909,2]
[328923667,1717998634215,-492.10731822,0.00021909,2]
[328923668,1717998634224,-253.91683289,0.00021909,2]
[328923669,1717998634235,-189.05211803,0.00021909,2]
[328923670,1717998634245,-252.7369097,0.00021909,2]
[328923671,1717998634257,-281.79040596,0.00021909,2]
[328923672,1717998634267,-188.91158708,0.00021909,2]
[328923673,1717998634276,-252.95285877,0.00021909,2]
[328923674,1717998634286,-155.89919325,0.00021909,2]
[328923675,1717998634295,-691.42696757,0.00021909,2]
[328923676,1717998634305,-393.48530904,0.00021909,2]
[328923677,1717998634316,-702.21828658,0.00021909,2]
[328923678,1717998634326,-586.31039684,0.00021909,2]
[328923679,1717998634336,-264.62788445,0.00021909,2]
[328923680,1717998634347,-1100.10114648,0.00021909,2]
[328923681,1717998634357,-2686.10930532,0.00021909,2]
[328923682,1717998634367,-151.0,0.00021909,2]
[328923683,1717998634376,-151.0,0.00021909,2]
[328923684,1717998634386,-151.0,0.00021909,2]
[328923685,1717998634396,-151.0,0.00021909,2]
[328923686,1717998634406,-3703.549403,0.00021909,2]
[328923687,1717998634417,-3703.549403,0.00021909,2]
[328923688,1717998634426,-154.286617,0.00021909,2]
[328923689,1717998634435,-712.409457,0.00021909,2]
[328923690,1717998634444,-712.409457,0.00021909,2]
[328923691,1717998634454,-262.960805,0.00021909,2]
[328923692,1717998634463,-262.960805,0.00021909,2]
[328923693,1717998634473,-584.932838,0.00021909,2]
[328923694,1717998634483,-584.932838,0.00021909,2]
[328923695,1717998634492,-151.0,0.00021909,2]
[328923696,1717998634502,-151.0,0.00021909,2]
[328923697,1717998634512,-158.903543,0.00021909,2]
[328923698,1717998634521,-1000.0,0.00021909,2]
[328923699,1717998634531,-1000.0,0.00021909,2]
[328923700,1717998634541,-1000.0,0.00021909,2]
[328923701,1717998634550,-1000.0,0.00021909,2]
[328923702,1717998634560,-1000.0,0.00021909,2]
[328923703,1717998634569,-1000.0,0.00021909,2]
[328923704,1717998634579,-1000.0,0.00021909,2]
[328923705,1717998634588,-1000.0,0.00021909,2]
[328923706,1717998634598,-1000.0,0.00021909,2]
[328923707,1717998634607,-1000.0,0.00021909,2]
[328923708,1717998634617,-1000.0,0.00021909,2]
[328923709,1717998634627,-988.827549,0.00021909,2]
[328923710,1717998634637,-361.521533,0.00021909,2]
[328923711,1717998634648,-361.521533,0.00021909,2]
[328923712,1717998634659,-361.521533,0.00021909,2]
[328923713,1717998634669,-361.521533,0.00021909,2]
[328923714,1717998634679,-151.0,0.00021909,2]
[328923715,1717998634689,-151.0,0.00021909,2]
[328923716,1717998634698,-152.684721,0.00021909,2]
[328923717,1717998634708,-410.663984,0.00021909,2]
[328923718,1717998634718,-410.663984,0.00021909,2]
[328923719,1717998634728,-410.663984,0.00021909,2]
[328923720,1717998634738,-410.663984,0.00021909,2]
[328923721,1717998634747,-410.663984,0.00021909,2]
[328923722,1717998634757,-410.663984,0.00021909,2]
[328923723,1717998634767,-151.0,0.00021909,2]
[328923724,1717998634777,-151.0,0.00021909,2]
[328923725,1717998634787,-151.0,0.00021909,2]
[328923726,1717998634797,-184.526248,0.00021909,2]
[328923727,1717998634892,-1746.630081,0.00021909,2]
[328923728,1717998634903,-1746.630081,0.00021909,2]
[328923729,1717998634915,-1746.630081,0.00021909,2]
[328923730,1717998634925,-1746.630081,0.00021909,2]
[328923731,1717998634934,-306.41234405,0.0002191,2]
[328923732,1717998634945,-237.34215491,0.0002191,2]
[328923733,1717998634955,-155.71628989,0.0002191,2]
[328923734,1717998634966,-215.59938556,0.0002191,2]
[328923735,1717998634976,-155.10565714,0.0002191,2]
[328923736,1717998634986,-778.50340752,0.0002191,2]
[328923737,1717998634997,-246.873253,0.0002191,2]
[328923738,1717998635007,-246.873253,0.0002191,2]
[328923739,1717998635018,-151.0,0.0002191,2]
[328923740,1717998635028,-151.0,0.0002191,2]
[328923741,1717998635038,-151.0,0.0002191,2]
[328923742,1717998635047,-151.0,0.0002191,2]
[328923743,1717998635057,-230.491124,0.0002191,2]
[328923744,1717998635067,-151.0,0.0002191,2]
[328923745,1717998635077,-3703.549403,0.0002191,2]
[328923746,1717998635087,-3703.549403,0.0002191,2]
[328923747,1717998635097,-712.409457,0.0002191,2]
[328923748,1717998635106,-712.409457,0.0002191,2]
[328923749,1717998635116,-262.960805,0.0002191,2]
[328923750,1717998635126,-262.960805,0.0002191,2]
[328923751,1717998635136,-262.960805,0.0002191,2]
[328923752,1717998635146,-262.960805,0.0002191,2]
[328923753,1717998635155,-584.932838,0.0002191,2]
[328923754,1717998635167,-584.932838,0.0002191,2]
[328923755,1717998635182,-584.932838,0.0002191,2]
[328923756,1717998635191,-584.932838,0.0002191,2]
[328923757,1717998635201,-151.0,0.0002191,2]
[328923758,1717998635211,-151.0,0.0002191,2]
[328923759,1717998635220,-151.0,0.0002191,2]
[328923760,1717998635229,-151.0,0.0002191,2]
[328923761,1717998635238,-361.521533,0.0002191,2]
[328923762,1717998635248,-361.521533,0.0002191,2]
[328923763,1717998635261,-361.521533,0.0002191,2]
[328923764,1717998635272,-361.521533,0.0002191,2]
[328923765,1717998635281,-410.663984,0.0002191,2]
[328923766,1717998635291,-410.663984,0.0002191,2]
[328923767,1717998635301,-287.994157,0.0002191,2]
[328923768,1717998635311,-1746.630081,0.0002191,2]
[328923769,1717998635321,-1746.630081,0.0002191,2]
[328923770,1717998635330,-40950.29181628,0.00021911,2]
[328923771,1717998635339,-151.0,0.00021911,2]
[328923772,1717998635349,-246.873253,0.00021911,2]
[328923773,1717998635358,-246.873253,0.00021911,2]
[328923774,1717998635367,-246.873253,0.00021911,2]
[328923775,1717998635377,-246.873253,0.00021911,2]
[328923776,1717998635386,-235.011926,0.00021911,2]
[328923777,1717998635395,-151.0,0.00021911,2]
[328923778,1717998635404,-151.0,0.00021911,2]
[328923779,1717998635415,-209.549376,0.00021911,2]
[328923780,1717998635424,-151.0,0.00021911,2]
[328923781,1717998635433,-151.0,0.00021911,2]
[328923782,1717998635443,-165.141468,0.00021911,2]
[328923783,1717998635452,-3703.549403,0.00021911,2]
[328923784,1717998635462,-3703.549403,0.00021911,2]
[328923785,1717998635471,-3703.549403,0.00021911,2]
[328923786,1717998635481,-3703.549403,0.00021911,2]
[328923787,1717998635491,-712.409457,0.00021911,2]
[328923788,1717998635500,-712.409457,0.00021911,2]
[328923789,1717998635510,-712.409457,0.00021911,2]
[328923790,1717998635519,-712.409457,0.00021911,2]
[328923791,1717998635529,-262.960805,0.00021911,2]
[328923792,1717998635539,-262.960805,0.00021911,2]
[328923793,1717998635549,-262.960805,0.00021911,2]
[328923794,1717998635559,-262.960805,0.00021911,2]
[328923795,1717998635569,-584.932838,0.00021911,2]
[328923796,1717998635578,-584.932838,0.00021911,2]
[328923797,1717998635588,-584.932838,0.00021911,2]
[328923798,1717998635598,-584.932838,0.00021911,2]
[328923799,1717998635607,-151.0,0.00021911,2]
[328923800,1717998635616,-158.144875,0.00021911,2]
[328923801,1717998635625,-151.0,0.00021911,2]
[328923802,1717998635634,-151.0,0.00021911,2]
[328923803,1717998635643,-361.521533,0.00021911,2]
[328923804,1717998635653,-361.521533,0.00021911,2]
[328923805,1717998635664,-361.521533,0.00021911,2]
[328923806,1717998635673,-361.521533,0.00021911,2]
[328923807,1717998635683,-410.663984,0.00021911,2]
[328923808,1717998635692,-410.663984,0.00021911,2]
[328923809,1717998635702,-410.663984,0.00021911,2]
[328923810,1717998635712,-410.663984,0.00021911,2]
[328923811,1717998635722,-1746.630081,0.00021911,2]
[328923812,1717998635732,-1746.630081,0.00021911,2]
[328923813,1717998635742,-1746.630081,0.00021911,2]
[328923814,1717998635752,-1746.630081,0.00021911,2]
[328923815,1717998635762,-46726.79599094,0.00021912,2]
[328923816,1717998635772,-151.0,0.00021912,2]
[328923817,1717998635781,-151.0,0.00021912,2]
[328923818,1717998635791,-246.873253,0.00021912,2]
[328923819,1717998635801,-246.873253,0.00021912,2]
[328923820,1717998635810,-151.0,0.00021912,2]
[328923821,1717998635820,-151.0,0.00021912,2]
[328923822,1717998635830,-3703.549403,0.00021912,2]
[328923823,1717998635841,-3703.549403,0.00021912,2]
[328923824,1717998635850,-712.409457,0.00021912,2]
[328923825,1717998635860,-712.409457,0.00021912,2]
[328923826,1717998635869,-262.960805,0.00021912,2]
[328923827,1717998635879,-262.960805,0.00021912,2]
[328923828,1717998635889,-584.932838,0.00021912,2]
[328923829,1717998635898,-584.932838,0.00021912,2]
[328923830,1717998635908,-151.0,0.00021912,2]
[328923831,1717998635919,-361.521533,0.00021912,2]
[328923832,1717998635929,-361.521533,0.00021912,2]
[328923833,1717998635938,-410.663984,0.00021912,2]
[328923834,1717998635948,-410.663984,0.00021912,2]
[328923835,1717998635958,-1746.630081,0.00021912,2]
[328923836,1717998635968,-1746.630081,0.00021912,2]
[328923837,1717998635978,-2642.16842245,0.00021913,2]
[328923838,1717998635987,-246.873253,0.00021913,2]
[328923839,1717998635997,-246.873253,0.00021913,2]
[328923840,1717998636007,-151.0,0.00021913,2]
[328923841,1717998636017,-151.0,0.00021913,2]
[328923842,1717998636026,-3703.549403,0.00021913,2]
[328923843,1717998636036,-3703.549403,0.00021913,2]
[328923844,1717998636045,-712.409457,0.00021913,2]
[328923845,1717998636055,-712.409457,0.00021913,2]
[328923846,1717998636064,-262.960805,0.00021913,2]
[328923847,1717998636073,-262.960805,0.00021913,2]
[328923848,1717998636083,-584.932838,0.00021913,2]
[328923849,1717998636093,-584.932838,0.00021913,2]
[328923850,1717998636102,-155.63352,0.00021913,2]
[328923851,1717998636111,-361.521533,0.00021913,2]
[328923852,1717998636121,-361.521533,0.00021913,2]
[328923853,1717998636130,-410.663984,0.00021913,2]
[328923854,1717998636140,-410.663984,0.00021913,2]
[328923855,1717998636150,-1746.630081,0.00021913,2]
[328923856,1717998636159,-1746.630081,0.00021913,2]
[328923857,1717998636171,-9587.15546833,0.00021914,2]
[328923858,1717998636181,-11095.22596521,0.00021914,2]
[328923859,1717998636191,-59567.24502529,0.00021914,2]
[328923860,1717998636201,-7917.24173521,0.00021914,2]